Cogmind - Beta 14 @@@ ROGUE MODE // 2024.11.02 @ 23:39:02 Player: APerTAS Result: Destroyed by D-53 Grenadier with Mini Grenade Launcher Performance ------------- Evolutions (0) 0 Regions Visited (4) 800 Robots Destroyed (17) 85 Value Destroyed (468) 468 Prototype IDs (2) 40 Alien Tech Used (0) 0 Bonus (0) 0 TOTAL SCORE: 1393 Bonus ------- None Cogmind --------- Core Integrity 0/250 Matter 279/300 Energy 247/250 System Corruption 0% Temperature Cool (0) Movement Treading (160) Location -9/Mines Parts ------- > --- POWER (1) -------- Ion Engine > --- PROPULSION (2) --- Light Treads Light Treads > --- UTILITY (2) ------ Small Storage Unit Signal Interpreter > --- WEAPON (2) ------- Heavy Assault Rifle Gauss Rifle > --- INVENTORY (8) ---- Fission Core Light Treads Light Treads Aluminum Leg Light Assault Rifle Rocket Launcher Welding Torch Hammer Peak State ------------ > --- POWER ------------ Ion Engine > --- PROPULSION ------- Light Treads Light Treads > --- UTILITY ---------- Small Storage Unit Signal Interpreter > --- WEAPON ----------- Heavy Assault Rifle Gauss Rifle > --- INVENTORY -------- Fission Core Light Treads Light Treads Aluminum Leg Light Assault Rifle Rocket Launcher Welding Torch Hammer [Rating: 12] Favorites ----------- Power Ion Engine Engine Ion Engine Propulsion Light Treads Treads Light Treads Wheel Compact Wheel Utility Small Storage Unit Storage Small Storage Unit Processor Signal Interpreter Weapon Light Assault Rifle Energy Gun EM Pulse Gun Ballistic Gun Light Assault Rifle Build | -11 -10 -10 -10 -9 ------- Run | Yrd Mat Min Exi Min Slots Evolved . | . . . . . Power . | . . . . . Propulsion . | . . . . . Utility . | . . . . . Weapon . | . . . . . Parts Attached 24 | 6 11 5 1 1 Power 6 | 1 4 . 1 . Engine 6 | 1 4 . 1 . Core . | . . . . . Reactor . | . . . . . Propulsion 6 | 2 1 3 . . Treads 3 | . . 3 . . Leg . | . . . . . Wheel 3 | 2 1 . . . Hover . | . . . . . Flight . | . . . . . Utility 2 | 1 1 . . . Device . | . . . . . Storage 1 | 1 . . . . Processor 1 | . 1 . . . Hackware . | . . . . . Protection . | . . . . . Artifact . | . . . . . Weapon 10 | 2 5 2 . 1 Energy Gun 1 | . 1 . . . Energy Cannon . | . . . . . Ballistic Gun 9 | 2 4 2 . 1 Ballistic Cannon . | . . . . . Launcher . | . . . . . Special Weapon . | . . . . . Impact Weapon . | . . . . . Slashing Weapon . | . . . . . Piercing Weapon . | . . . . . Special Melee Weapon . | . . . . . Unidentified Prototypes . | . . . . . Parts Lost 5 | . 2 3 . . Power 2 | . 1 1 . . Propulsion 1 | . . 1 . . Utility . | . . . . . Weapon 2 | . 1 1 . . Highest Loss Streak 3 | . 1 3 . . To Critical Strikes . | . . . . . Average Slot Usage (%) 94 | . 96 85 96 100 Engine 9 | . 14 1 10 14 Treads 20 | . . 23 28 28 Wheel 7 | . 28 4 . . Storage 14 | . 14 14 14 14 Processor 13 | . 11 14 14 14 Ballistic Gun 27 | . 27 26 28 28 Peak Build Rating 12 | 6 7 7 8 12 Average Rating 7 | 4 6 6 7 9 On Entrance 5 | . 6 7 7 8 Naked Turns . | . . . . . Heaviest Build 17 | 13 13 12 14 17 Greatest Support 40 | 32 32 40 40 40 Greatest Overweight (x) . | . . . . . Average Overweight (x) . | . . . . . Largest Inventory Capacity 8 | 8 8 8 8 8 Average Capacity 7 | 7 8 8 8 8 Most Carried 8 | 6 8 8 8 8 Average Carried 7 | 3 7 8 8 7 Final Capacity 8 | 8 8 8 8 8 Final Carried 8 | 6 8 8 8 8 Class Distribution -------------------- 61% | Mutant 32% | Commander-Mutant 5% | Scavenger-Mutant Dominant Class ---------------- Mutant | -10/Materials Mutant | -10/Mines Commander-Mutant | -10/Exiles Mutant | -9/Mines Resources | -11 -10 -10 -10 -9 ----------- Run | Yrd Mat Min Exi Min Matter Collected 612 | 235 280 77 10 10 Remotely . | . . . . . Salvage Created 705 | . 587 118 . . Parts 37 | . 28 9 . . Haulers Intercepted 1 | . 1 . . . Recyclers Shooed . | . . . . . Parts Field Recycled . | . . . . . Retrieved Matter . | . . . . . Parts Self-Destructed . | . . . . . Prevented . | . . . . . Kills | -11 -10 -10 -10 -9 ------- Run | Yrd Mat Min Exi Min Combat Hostiles Destroyed 13 | . 11 2 . . Guns 13 | . 11 2 . . Classes Destroyed 7 | . 6 1 . . Hauler 1 | . 1 . . . Recycler 1 | . 1 . . . Operator 1 | . 1 . . . Watcher 1 | . 1 . . . Swarmer 3 | . 3 . . . Grunt 8 | . 8 . . . Sentry 2 | . . 2 . . Best Kill Streak 5 | . 5 1 . . Combat Bots Only 5 | . 5 1 . . Max Kills in Single Turn 1 | . 1 1 . . Gunslinging . | . . . . . Exploded . | . . . . . Melee . | . . . . . Uniques/NPCs Destroyed . | . . . . . Combat | -11 -10 -10 -10 -9 -------- Run | Yrd Mat Min Exi Min Hostile Shots Fired 90 | . 55 30 . 5 Missed 23 | . 17 5 . 1 Damage Taken 960 | . 445 367 . 148 Core 271 | . 111 134 . 26 Absorbed by Shields . | . . . . . Core Remaining (%) 100 | 100 . . . . Volleys Fired 75 | . 52 20 . 3 Largest 2 | . 2 2 . 2 Hottest 60 | . 60 43 . 51 Shots Fired 138 | . 104 28 . 6 Gun 138 | . 104 28 . 6 Cannon . | . . . . . Launcher . | . . . . . Special . | . . . . . Kinetic 133 | . 99 28 . 6 Thermal . | . . . . . Explosive . | . . . . . Electromagnetic 5 | . 5 . . . Robot Hit Streak 11 | . 11 9 . 1 Robot Miss Streak 4 | . 4 1 . 4 Penetration Max . | . . . . . Secondary Targets . | . . . . . Shots Hit Robots 95 | . 71 22 . 2 Core Hits 35 | . 29 6 . . Critical Kills 1 | . 1 . . . Critical Parts Destroyed 1 | . 1 . . . Critical Strikes 3 | . 2 . . 1 Destroy 3 | . 2 . . 1 Melee Attacks . | . . . . . Impact . | . . . . . Slashing . | . . . . . Piercing . | . . . . . Sneak Attacks . | . . . . . Combat Hostiles . | . . . . . Follow-up Attacks . | . . . . . Damage Inflicted 902 | . 700 181 . 21 Guns 902 | . 700 181 . 21 Cannons . | . . . . . Explosions . | . . . . . Melee . | . . . . . Ramming . | . . . . . Kinetic 861 | . 659 181 . 21 Thermal . | . . . . . Explosive . | . . . . . Electromagnetic 41 | . 41 . . . Impact . | . . . . . Slashing . | . . . . . Piercing . | . . . . . Highest Corruption . | . . . . . Average Corruption . | . . . . . Corruption Purged . | . . . . . Corruption Blocked . | . . . . . Overload Shots . | . . . . . Overflow Damage . | . . . . . Projectiles . | . . . . . Explosions . | . . . . . Melee . | . . . . . Knockbacks . | . . . . . Impact . | . . . . . Kinetic . | . . . . . Secondary . | . . . . . Self-Inflicted Damage . | . . . . . Shots . | . . . . . Rammed . | . . . . . Targets Rammed . | . . . . . Kicked . | . . . . . Crushed . | . . . . . Highest Temperature 59 | . 59 27 . . Average Temperature 17 | . 20 11 . . Received Heat Transfer 294 | . 195 99 . . Siege Activations . | . . . . . Robots Corrupted . | . . . . . Combat Hostiles . | . . . . . Parts Fried . | . . . . . Impact Corruptions . | . . . . . Robots Melted . | . . . . . Combat Hostiles . | . . . . . Parts Melted . | . . . . . Heat Transferred . | . . . . . Parts Sabotaged . | . . . . . Parts Stolen . | . . . . . Parts Stripped . | . . . . . Power Chain Reactions . | . . . . . Alert | -11 -10 -10 -10 -9 ------- Run | Yrd Mat Min Exi Min Peak Influence 253 | . 253 84 . 15 Initial 49 | . . 49 . . Average 58 | . 106 54 . . Maximum Alert Level 1 | . 1 . . . Low Security (%) 94 | 100 84 100 . 100 Level 1 5 | . 15 . . . Level 2 . | . . . . . Level 3 . | . . . . . Level 4 . | . . . . . Level 5 . | . . . . . High Security . | . . . . . Max Security . | . . . . . Squads Dispatched 1 | . 1 . . . Investigation . | . . . . . Extermination . | . . . . . Reinforcement 1 | . 1 . . . Assault . | . . . . . Garrison . | . . . . . Intercept . | . . . . . Searches Triggered . | . . . . . Construction Impeded . | . . . . . Haulers Reinforced . | . . . . . Active Scanning Responses . | . . . . . Cargo Convoy Interrupts . | . . . . . Stealth | -11 -10 -10 -10 -9 --------- Run | Yrd Mat Min Exi Min Distress Signals 2 | . 2 . . . Communications Jammed . | . . . . . Distress Signals . | . . . . . Times Spotted 28 | . 18 2 . 8 Peak Tracking Total 6 | . 5 2 . 6 Tactical Retreats . | . . . . . Traps | -11 -10 -10 -10 -9 ------- Run | Yrd Mat Min Exi Min Traps Triggered 1 | . 1 . . . Indirectly . | . . . . . Trap Hack Attempts . | . . . . . Triggered . | . . . . . Disarmed . | . . . . . Reprogrammed . | . . . . . Reused . | . . . . . Traps Extracted . | . . . . . Installed . | . . . . . Triggered . | . . . . . Machines | -11 -10 -10 -10 -9 ---------- Run | Yrd Mat Min Exi Min Machines Disabled 1 | . . . . 1 Max in Single Turn . | . . . . . Machines Repaired . | . . . . . Machines Dismantled . | . . . . . Machines Sabotaged . | . . . . . Overloaded Fab Kills . | . . . . . Hacking | -11 -10 -10 -10 -9 --------- Run | Yrd Mat Min Exi Min Machines Accessed 9 | . 5 . 4 . Terminals 4 | . 4 . . . Fabricators . | . . . . . Repair Stations . | . . . . . Recycling Units 1 | . 1 . . . Scanalyzers . | . . . . . Garrison Access . | . . . . . Total Hacks 65 | . 16 . 49 . Successful 56 | . 7 . 49 . Failed 9 | . 9 . . . Catastrophic 1 | . 1 . . . Database Lockouts . | . . . . . Manual 9 | . 9 . . . Terminals 12 | . 12 . . . Fabricators . | . . . . . Repair Stations . | . . . . . Recycling Units 4 | . 4 . . . Scanalyzers . | . . . . . Garrison Access . | . . . . . Terminal Hacks 52 | . 3 . 49 . Record 49 | . . . 49 . Prototype ID Bank 1 | . 1 . . . Locate Traps 1 | . 1 . . . Patrol Status 1 | . 1 . . . Fabricator Hacks . | . . . . . Repair Station Hacks . | . . . . . Recycling Unit Hacks 1 | . 1 . . . Retrieve Components 1 | . 1 . . . Scanalyzer . | . . . . . Garrison Access Hacks . | . . . . . Unauthorized Hacks 3 | . 3 . . . Terminals 3 | . 3 . . . Track 1 | . 1 . . . Botnet 2 | . 2 . . . Fabricators . | . . . . . Repair Stations . | . . . . . Recycling Units . | . . . . . Scanalyzers . | . . . . . Garrison Access . | . . . . . Data Cores Recovered . | . . . . . Used . | . . . . . Hacking Detections 5 | . 5 . . . Full Trace Events 2 | . 2 . . . Feedback Events . | . . . . . Feedback Blocked . | . . . . . Robot Schematics Acquired . | . . . . . Robots Built . | . . . . . Authchips . | . . . . . Time . | . . . . . Total Robot Build Rating . | . . . . . Part Schematics Acquired . | . . . . . Parts Built . | . . . . . Authchips . | . . . . . Time . | . . . . . Total Part Build Rating . | . . . . . Parts Repaired . | . . . . . Time . | . . . . . Parts Recycled . | . . . . . Recycled Matter . | . . . . . Retrieved Matter . | . . . . . Retrieved Components 10 | . 10 . . . Parts Scanalyzed . | . . . . . Part Schematics Acquired . | . . . . . Parts Damaged . | . . . . . Bothacking | -11 -10 -10 -10 -9 ------------ Run | Yrd Mat Min Exi Min Used RIF Installer . | . . . . . Robots Hacked . | . . . . . Non-combat . | . . . . . Combat . | . . . . . Robot Hacks Applied . | . . . . . Relay Couplers Released . | . . . . . Fabnet Peak Effective % . | . . . . . Robots Rewired 4 | . . . 4 . Allies Hacked . | . . . . . Hacks Repelled . | . . . . . Allies | -11 -10 -10 -10 -9 -------- Run | Yrd Mat Min Exi Min Total Allies 4 | . . . 4 . Largest Group 4 | . . . 4 4 Highest-Rated Group 45 | . . . 45 45 Highest-Rated Ally 21 | . . . 21 21 Total Orders . | . . . . . Ally Attacks 8 | . . . . 8 Total Damage 91 | . . . . 91 Kills 2 | . . . . 2 Allies Corrupted . | . . . . . Allies Melted . | . . . . . Intel | -11 -10 -10 -10 -9 ------- Run | Yrd Mat Min Exi Min Robot Analysis Total . | . . . . . Derelict Logs Recovered 2 | . . 1 . 1 Drone Launches . | . . . . . Drone Recoveries . | . . . . . Exploration | -11 -10 -10 -10 -9 ------------- Run | Yrd Mat Min Exi Min Turns Passed 2601 | 61 586 512 1059 383 Spaces Moved 1512 | 47 390 304 635 136 Core 1 | 1 . . . . Treads 1033 | . . 262 635 136 Legs . | . . . . . Wheels 478 | 46 390 42 . . Hover . | . . . . . Flight . | . . . . . Fastest Speed 50 | 50 100 100 160 160 Average Speed 140 | 98 100 151 160 160 Slowest Speed 160 | 100 100 160 160 160 Overloaded Moves . | . . . . . Propulsion Burnouts . | . . . . . Robots Hopped . | . . . . . Cave-ins Triggered . | . . . . . Exploration Rate (%) 47 | 3 64 52 92 27 Regions Visited 4 Branch Regions 3 Pre-discovered Areas 2 | . . . 1 1 Known Exits Taken 3 | . 1 1 1 . Unknown Exits Taken 1 | 1 . . . . Scrap Searched 2 | . . 1 . 1 Spaces Dug . | . . . . . Terrain Destroyed . | . . . . . Melee . | . . . . . Projectile . | . . . . . AOE . | . . . . . Terrain Rammed . | . . . . . Walls Destroyed . | . . . . . Machines Disabled . | . . . . . Actions | -11 -10 -10 -10 -9 --------- Run | Yrd Mat Min Exi Min Total 1866 | 58 496 334 679 299 Wait 187 | . 31 . . 156 Move 1508 | 46 389 303 634 136 Hop . | . . . . . Pick Up 16 | 6 6 2 1 1 Fast Attach 11 | 6 1 3 1 . Attach 2 | . 2 . . . Detach . | . . . . . Swap 11 | . 8 2 . 1 Drop 14 | . 7 4 1 2 Fire 75 | . 52 20 . 3 Melee . | . . . . . Ram . | . . . . . Kick . | . . . . . Crush . | . . . . . Escape Stasis . | . . . . . Rewire 42 | . . . 42 . Trap . | . . . . . Miscellaneous . | . . . . . Route ------- -11/Scrapyard -10/Materials (discovered 2 exits: *Mat / *Min) -10/Mines (discovered 3 exits: *Mat x2 / *Exi) -10/Exiles (discovered 2 exits: *Min x2) -9/Mines History --------- Turn | Location | Event 10 | -11/Scrapyard | Discovered new exit (range 14) 62 | -11/Scrapyard | Entered Materials 307 | -10/Materials | Build established: Mutant 414 | -10/Materials | Discovered new exit (range 16) 512 | -10/Materials | Discovered new exit (range 16) 633 | -10/Materials | Identified exit to Mines 648 | -10/Materials | Entered Mines 695 | -10/Mines | Core integrity fell below 50% 716 | -10/Mines | Core integrity fell below 20% 743 | -10/Mines | Lost 3 parts (1p1n1w) 771 | -10/Mines | Discovered new exit (range 11) 780 | -10/Mines | Received a Rocket Launcher from a helpful Derelict 1019 | -10/Mines | Learned Materials terminal intel 1089 | -10/Mines | Discovered new exit (range 12) 1105 | -10/Mines | Identified exit to Materials 1153 | -10/Mines | Deemed a non-threat by the Exiles lab entrance 1153 | -10/Mines | Discovered new exit (range 5) 1158 | -10/Mines | Identified exit to Exiles 1160 | -10/Mines | Entered Exiles 1160 | -10/Exiles | Found Exiles lab destroyed 1363 | -10/Exiles | Learned location of Zion (-7) 1696 | -10/Exiles | Build established: Commander-Mutant 2004 | -10/Exiles | Discovered new exit (range 10) 2016 | -10/Exiles | Identified exit to Mines 2190 | -10/Exiles | Discovered exit to Mines (range 15) 2219 | -10/Exiles | Entered Mines 2219 | -9/Mines | Accompanied by 4 allies 2220 | -9/Mines | Learned location of Storage (-9) 2222 | -9/Mines | Assembled infested the area 2227 | -9/Mines | Assisted by a Guerilla fighting off Assembled 2264 | -9/Mines | Learned Materials terminal intel 2296 | -9/Mines | Lost 5 allies 2602 | -9/Mines | Destroyed by D-53 Grenadier with Mini Grenade Launcher Last Messages --------------- 02264_ Acquired derelict log, extracted data. Data stored: Materials terminal intel. 02265_ Commando 1a destroyed. 02265_ T-07 Excavator is excavating. 02473_ Dropped Lgt. Assault Rifle. 02475_ Acquired 10 matter. 02484_ Dropped Ion Engine. 02485_ Acquired Fission Core. 02522_ Searching scrap... 02522_ Found VTOL Module. 02522_ Found Weight Redist. System. 02522_ Found Seismic Detector. 02522_ Found ECM Suite. 02522_ Found 59 Matter. 02526_ R-06 Scavenger destroyed. 02596_ Slug penetrates Wall. 02600_ Pressure Siphon disabled. 02600_ D-53 Grenadier destroyed. 02602_ Slug penetrates D-53 Grenadier. 02602_ D-53 Grenadier suffers critical hit (Destroy). Map ----- +----------------------------------------------------+ | ?????????????????????????????????????????????????? | | ?????????????????????????????????????????????????? | | ?????????????????????????????????????????????????? | | ?????????????????????????????????????????????????? | | ?????????????????????????????????????????????????? | | ?????????????????????????????????????????????????? | | ?????????????????????????????????????????????????? | | ?????????????????????????????????????????????????? | | ?????????????????????????????????????????????????? | | ?????????????????????????????????????????????????? | | ?????????????????????????????????????????????????? | | ?????????????????????????????????????????????????? | | ?????????????????????????????????????????????????? | | ?????????????????????????????????????????????????? | | ?????????????????????????????????????????????????? | | ?????????????????????????????????????????????????? | | ?????????????????????????????????????????????????? | | ??????????????????????????????????####???????????? | | ????????????????????????????????? ????????????? | | ???????????????????????????????? ??????????????? | | ??????????????????????###?????? #???????????????? | | ?????????????????????## ##### #???????????????? | | ????????????????????## #???????????????? | | ???????????????????## #????????????????? | | ???????????????????# d #?????????????????? | | #####??????????????# @ ###?????????????????? | | #?????????????## ##???????????????????? | | ## ??????????##### #???????????????????? | | # #??????????# ###?????????????????? | | # ??????????# ## ##????????????????? | | # #??????????# # #????????????????? | | # ## #??????????# ## """ #????????????????? | | =### #??????????# # "" ##????????????????? | | *=%*!#??????????# # """ ##?????????????????? | | *![| #??????????# ### """ ##?????????????????? | | ### ############ #?# ##????????????????? | | # %% != #?### #????????????????? | | # !%! #???# #????????????????? | | ### ###### ######??## ### ##????????????????? | | ??# #????# #???????# #?#####?????????????????? | | ?## ##????# #??????# #??????????????????????? | | ?# ####### #??????# #??????????????????????? | | ?# #??????## ##??????????????????????? | | ?## ##########???????####???????????????????????? | | ??####???????????????????????????????????????????? | | ?????????????????????????????????????????????????? | | ?????????????????????????????????????????????????? | | ?????????????????????????????????????????????????? | | | | | +----------------------------------------------------+ Best States ------------- Heat Dissipation 25 Energy Generation 10 Energy Capacity 250 Matter Stores 300 Matter Capacity 300 Sight Range 16 Terrain Scan Density 10 Evasion (%) 40 Recoil Reduction 2 Item Schematics ----------------- None Robot Schematics ------------------ None Fabricated ------------ Nothing Alien Tech Used ----------------- None Achievements -------------- None Challenges ------------ None Game ------ Seed HeavyLayeredFemtoactuators Manual? 0 Play Time 00:18:13 Cumulative 41.3 hours Start 2024.11.02 @ 23:19:33 End 2024.11.02 @ 23:39:02 Sessions 1 Manual Loads 0 Difficulty Rogue Special Mode None Game No. 169 Rogue 169 Adventurer 0 Explorer 0 Win Type - Total 0 Types 0/0/0/0/0/0/0/0/0 Lore% 50 Gallery% 34 Achievement% 34 Wizard Run 0 Options --------- Layout 0 ASCII 0 Keyboard 0 Movement Arrows Keybinds 0 Fullscreen 1 Font 24/Terminus Map View 64x52 Zoom Use 0% Tactical HUD 1 Map Filters NONE Filters NONE Steam 1 RUN: b61717dd-d8cf-4655-a969-aa523e282a81